Cogmind - Beta 17.1 @@@ ROGUE MODE // 2026.09.05 @ 12:33:14 Player: szymekc Result: Destroyed by G-47 Trooper with Particle Gun Performance ------------- Evolutions (0) 0 Regions Visited (4) 800 Robots Destroyed (32) 160 Value Destroyed (562) 562 Prototype IDs (29) 580 Alien Tech Used (0) 0 Bonus (300) 300 TOTAL SCORE: 2402 Bonus ------- Aligned with FarCom 300 Cogmind --------- Core Integrity 0/250 Matter 204/300 Energy 265/265 System Corruption 0% Temperature Cool (12) Movement Walking (190) Ox1 Location -9/Mines Parts ------- > --- POWER (1) -------- Improved Ion Engine > --- PROPULSION (2) --- Aluminum Leg Aluminum Leg > --- UTILITY (2) ------ Large Storage Unit Seismic Detector > --- WEAPON (2) ------- Rocket Launcher Makeshift Spear > --- INVENTORY (15) --- Aluminum Leg Huge Storage Unit High-capacity Matter Pod (200) High-capacity Matter Pod (200) Structural Scanner Experimental Sensor Array Light EM Pulse Cannon Heavy Assault Rifle Heavy Assault Rifle Heavy Assault Rifle Heavy Assault Rifle Grenade Launcher Field Lobotomy Kit (5) Peak State ------------ > --- POWER ------------ Improved Ion Engine > --- PROPULSION ------- Aluminum Leg Aluminum Leg > --- UTILITY ---------- Large Storage Unit Experimental Sensor Array > --- WEAPON ----------- Heavy Assault Rifle Makeshift Spear > --- INVENTORY -------- Aluminum Leg Huge Storage Unit High-capacity Matter Pod High-capacity Matter Pod Seismic Detector Heavy Assault Rifle Heavy Assault Rifle Heavy Assault Rifle Grenade Launcher Field Lobotomy Kit [Rating: 22] Favorites ----------- Power Ion Engine Engine Ion Engine Propulsion Light Treads Treads Light Treads Leg Aluminum Leg Utility Seismic Detector Device Seismic Detector Storage Large Storage Unit Weapon Heavy Assault Rifle Energy Gun Small Laser Ballistic Gun Heavy Assault Rifle Launcher Grenade Launcher Piercing Weapon Makeshift Spear Build | -11 -10 -10 -10 -9 ------- Run | Yrd Mat Min Exi Min Slots Evolved . | . . . . . Power . | . . . . . Propulsion . | . . . . . Utility . | . . . . . Weapon . | . . . . . Parts Attached 29 | 8 7 2 7 5 Power 3 | 1 1 . . 1 Engine 3 | 1 1 . . 1 Core . | . . . . . Reactor . | . . . . . Propulsion 4 | 2 . . 1 1 Treads 2 | 2 . . . . Leg 2 | . . . 1 1 Wheel . | . . . . . Hover . | . . . . . Flight . | . . . . . Utility 7 | 2 2 1 1 1 Device 5 | 2 1 1 . 1 Storage 2 | . 1 . 1 . Processor . | . . . . . Hackware . | . . . . . Protection . | . . . . . Artifact . | . . . . . Weapon 15 | 3 4 1 5 2 Energy Gun 2 | 2 . . . . Energy Cannon . | . . . . . Ballistic Gun 9 | 1 4 . 4 . Ballistic Cannon . | . . . . . Launcher 3 | . . 1 1 1 Special Weapon . | . . . . . Impact Weapon . | . . . . . Slashing Weapon . | . . . . . Piercing Weapon 1 | . . . . 1 Special Melee Weapon . | . . . . . Unidentified Prototypes 1 | . . 1 . . Parts Lost 8 | . 1 . 6 1 Power 1 | . . . 1 . Propulsion 2 | . . . 2 . Utility 1 | . . . 1 . Weapon 4 | . 1 . 2 1 Highest Loss Streak 6 | . 1 . 6 1 To Critical Strikes 4 | . . . 4 . Average Backups 12 | 1 10 15 16 10 Power . | . . . 1 . Propulsion 2 | . 1 3 2 1 Utility 3 | . 1 3 4 3 Weapon 6 | . 7 8 7 4 Tool/Special . | . . . . . Unused Backups 17 | . 2 1 6 8 Power 4 | . 1 . 3 . Propulsion 1 | . . . . 1 Utility 7 | . . 1 3 3 Weapon 3 | . . . . 3 Tool/Special 2 | . 1 . . 1 Average Slot Usage (%) 98 | . 99 100 99 95 Engine 13 | . 14 14 13 11 Treads 22 | . 27 28 27 . Leg 5 | . . . . 28 Device 14 | . 16 14 13 12 Storage 13 | . 11 14 14 14 Ballistic Gun 25 | . 27 27 27 17 Piercing Weapon 1 | . . . . 10 Peak Build Rating 22 | 9 11 19 14 22 Average Rating 11 | 5 9 11 12 15 On Entrance 8 | . 9 11 11 9 Avg Prop Armor Cover (%) 8 | . . . 8 . Naked Turns . | . . . . . Heaviest Build 92 | 9 32 32 92 34 Greatest Support 40 | 40 40 40 40 20 Greatest Overweight (x) 2 | . . . 2 1 Average Overweight (x) . | . . . 1 1 Largest Inventory Capacity 25 | 5 15 15 25 15 Average Capacity 15 | 5 13 15 21 15 Most Carried 22 | 3 15 15 22 13 Average Carried 12 | 1 10 14 16 10 Final Capacity 15 | 5 15 15 15 15 Final Carried 15 | 3 15 15 12 13 Class Distribution -------------------- 88% | Mutant 11% | Scavenger-Mutant Dominant Class ---------------- Mutant | -10/Materials Mutant | -10/Mines Mutant | -10/Exiles Scavenger-Mutant | -9/Mines Resources | -11 -10 -10 -10 -9 ----------- Run | Yrd Mat Min Exi Min Matter Collected 1855 | 295 436 185 724 215 Remotely . | . . . . . Salvage Created 1070 | 191 499 149 7 224 Parts 74 | 15 32 10 . 17 Haulers Intercepted 2 | . 2 . . . Recyclers Shooed 3 | . . 1 . 2 Parts Field Recycled . | . . . . . Retrieved Matter . | . . . . . Parts Self-Destructed . | . . . . . Prevented . | . . . . . Parts Restored . | . . . . . Kills | -11 -10 -10 -10 -9 ------- Run | Yrd Mat Min Exi Min Combat Hostiles Destroyed 26 | . 12 4 6 4 Guns 15 | . 12 1 . 2 AOE 11 | . . 3 6 2 Classes Destroyed 9 | 2 3 1 1 2 Worker 1 | . . 1 . . Builder 1 | . . . . 1 Tunneler 4 | 4 . . . . Hauler 2 | . 2 . . . Recycler 4 | 1 1 1 . 1 Swarmer 9 | . 6 3 . . Grunt 10 | . 6 1 . 3 Duelist 1 | . . . . 1 Assembled 6 | . . . 6 . Best Kill Streak 6 | 3 3 3 6 3 Combat Bots Only 6 | . 3 3 6 2 Max Kills in Single Turn 3 | 1 1 2 3 2 Gunslinging . | . . . . . Exploded 3 | . . 2 3 2 Melee . | . . . . . Uniques/NPCs Destroyed . | . . . . . Combat | -11 -10 -10 -10 -9 -------- Run | Yrd Mat Min Exi Min Hostile Shots Fired 139 | . 61 9 49 20 Missed 25 | . 12 2 6 5 Hits 114 | . 49 7 43 15 Melee 4 | . . . . 4 Projectile 110 | . 49 7 43 11 Critical Strikes 23 | . 1 . 21 1 Damage Taken 1619 | . 528 71 760 260 Core 257 | . 71 9 141 36 Absorbed by Shields . | . . . . . Regen/Repaired (Parts) 190 | . 190 . . . Core Remaining (%) 100 | 100 . . . . Volleys Fired 109 | 15 43 12 24 15 Largest 2 | 2 2 2 2 2 Hottest 60 | 60 46 46 46 46 Shots Fired 208 | 30 86 20 43 29 Gun 200 | 30 86 17 39 28 Cannon . | . . . . . Launcher 8 | . . 3 4 1 Special . | . . . . . Kinetic 185 | 15 86 17 39 28 Thermal 15 | 15 . . . . Explosive 8 | . . 3 4 1 Electromagnetic . | . . . . . Robot Hit Streak 20 | 6 11 9 20 5 Robot Miss Streak 10 | 2 10 3 1 2 Penetration Max . | . . . . . Secondary Targets 4 | . 3 . . 1 Max Gunslinging Chain 1 | . 1 . . 1 Shots Hit Robots 132 | 17 49 11 34 21 Core Hits 70 | 7 25 8 21 9 Critical Kills 2 | . 1 . . 1 Critical Parts Destroyed . | . . . . . Critical Strikes 2 | . 1 . . 1 Destroy 2 | . 1 . . 1 Melee Attacks 12 | . . . . 12 Impact . | . . . . . Slashing . | . . . . . Piercing 12 | . . . . 12 Sneak Attacks 2 | . . . . 2 Combat Hostiles . | . . . . . Follow-up Attacks . | . . . . . Damage Inflicted 2490 | 177 555 399 828 531 Guns 1710 | 177 533 165 532 303 Cannons . | . . . . . Explosions 658 | . . 226 296 136 Melee 92 | . . . . 92 Ramming 30 | . 22 8 . . Kinetic 1585 | 52 533 165 532 303 Thermal 125 | 125 . . . . Explosive 658 | . . 226 296 136 Electromagnetic . | . . . . . Impact . | . . . . . Slashing . | . . . . . Piercing 92 | . . . . 92 Highest Corruption . | . . . . . Average Corruption . | . . . . . Corruption Purged . | . . . . . Corruption Blocked . | . . . . . Overload Shots . | . . . . . Overflow Damage 19 | . . . 13 6 Projectiles . | . . . . . Explosions 13 | . . . 13 . Melee 6 | . . . . 6 Knockbacks . | . . . . . Impact . | . . . . . Kinetic . | . . . . . Secondary . | . . . . . Self-Inflicted Damage 12 | . . . 12 . Shots 1 | . . . 1 . Rammed 6 | . 2 4 . . Targets Rammed 7 | . 3 4 . . Kicked . | . . . . . Crushed 1 | . 1 . . . Highest Temperature 21 | 20 21 1 12 8 Average Temperature 7 | 10 7 1 5 4 Received Heat Transfer 267 | . 171 24 . 72 Siege Activations . | . . . . . Martial Activations . | . . . . . Shielding Activations . | . . . . . Robots Disrupted . | . . . . . Combat Hostiles . | . . . . . Robots Corrupted . | . . . . . Combat Hostiles . | . . . . . Parts Fried . | . . . . . Impact Corruptions . | . . . . . Robots Melted . | . . . . . Combat Hostiles . | . . . . . Parts Melted . | . . . . . Heat Transferred 275 | 275 . . . . Parts Sabotaged . | . . . . . Parts Stolen . | . . . . . Parts Stripped . | . . . . . Power Chain Reactions . | . . . . . Alert | -11 -10 -10 -10 -9 ------- Run | Yrd Mat Min Exi Min Maximum Alert Level . | . . . . . Low Security (%) 100 | 100 100 100 . 100 Level 1 . | . . . . . Level 2 . | . . . . . Level 3 . | . . . . . Level 4 . | . . . . . Level 5 . | . . . . . High Security . | . . . . . Max Security . | . . . . . Peak Influence 115 | 5 115 99 . 51 Initial . | . . . . . Average 16 | . 28 14 . 2 Influence Increases 634 | 25 346 144 . 119 Destroy 0b10 Robot/C 400 | . 240 80 . 80 Destroy 0b10 Robot/NC 60 | 25 15 10 . 10 Destroy Leader 84 | . 64 10 . 10 Successful Hack 11 | . 11 . . . Disable Machine 15 | . . 15 . . Destroy Structure 34 | . 1 14 . 19 Lose Combat Pursuer 30 | . 15 15 . . Influence Decreases 583 | 25 346 141 3 68 Entered New Map 3 | . . . 3 . Time Decay 560 | 25 336 141 . 58 Lost Part 20 | . 10 . . 10 Squads Dispatched 3 | . 3 . . . Investigation 1 | . 1 . . . Extermination . | . . . . . Reinforcement 2 | . 2 . . . Assault . | . . . . . Garrison . | . . . . . Intercept . | . . . . . Searches Triggered . | . . . . . Construction Impeded . | . . . . . Haulers Reinforced . | . . . . . Active Scanning Responses . | . . . . . Cargo Convoy Interrupts . | . . . . . Stealth | -11 -10 -10 -10 -9 --------- Run | Yrd Mat Min Exi Min Distress Signals 2 | . 2 . . . Communications Jammed . | . . . . . Distress Signals . | . . . . . Times Spotted 36 | . 21 4 7 4 Peak Tracking Total 9 | . 4 3 9 3 Tactical Retreats 2 | . 1 1 . . Traps | -11 -10 -10 -10 -9 ------- Run | Yrd Mat Min Exi Min Traps Triggered 2 | . 2 . . . Indirectly . | . . . . . Trap Hack Attempts . | . . . . . Triggered . | . . . . . Disarmed . | . . . . . Reprogrammed . | . . . . . Reused . | . . . . . Traps Extracted . | . . . . . Installed . | . . . . . Triggered . | . . . . . Machines | -11 -10 -10 -10 -9 ---------- Run | Yrd Mat Min Exi Min Machines Disabled 4 | . . 1 3 . Max in Single Turn 2 | . . 1 2 . Machines Repaired . | . . . . . Machines Dismantled . | . . . . . Machines Sabotaged . | . . . . . Overloaded Fab Kills . | . . . . . Hacking | -11 -10 -10 -10 -9 --------- Run | Yrd Mat Min Exi Min Machines Accessed 7 | . 5 . 2 . Terminals 4 | . 4 . . . Fabricators . | . . . . . Repair Stations 1 | . 1 . . . Recycling Units . | . . . . . Scanalyzers . | . . . . . Garrison Access . | . . . . . Total Hacks 23 | . 15 . 8 . Successful 16 | . 8 . 8 . Failed 7 | . 7 . . . Catastrophic . | . . . . . Database Lockouts . | . . . . . Manual 2 | . . . 2 . Terminals 10 | . 10 . . . Fabricators . | . . . . . Repair Stations 5 | . 5 . . . Recycling Units . | . . . . . Scanalyzers . | . . . . . Garrison Access . | . . . . . Terminal Hacks 12 | . 4 . 8 . Record 7 | . . . 7 . Prototype ID Bank 3 | . 3 . . . Locate Traps 1 | . 1 . . . Proto ID Catalog 1 | . . . 1 . Fabricator Hacks . | . . . . . Repair Station Hacks 4 | . 4 . . . Scan Component 2 | . 2 . . . Repair 2 | . 2 . . . Recycling Unit Hacks . | . . . . . Scanalyzer . | . . . . . Garrison Access Hacks . | . . . . . Unauthorized Hacks . | . . . . . Terminals . | . . . . . Fabricators . | . . . . . Repair Stations . | . . . . . Recycling Units . | . . . . . Scanalyzers . | . . . . . Garrison Access . | . . . . . Data Cores Recovered . | . . . . . Used . | . . . . . Hacking Detections 4 | . 4 . . . Full Trace Events 1 | . 1 . . . Feedback Events . | . . . . . Feedback Blocked . | . . . . . Robot Schematics Acquired . | . . . . . Robots Built . | . . . . . Authchips . | . . . . . Time . | . . . . . Total Robot Build Rating . | . . . . . Part Schematics Acquired . | . . . . . Parts Built . | . . . . . Authchips . | . . . . . Time . | . . . . . Total Part Build Rating . | . . . . . Part Studies Acquired . | . . . . . Parts Repaired 2 | . 2 . . . Time 52 | . 52 . . . Parts Recycled . | . . . . . Recycled Matter . | . . . . . Retrieved Matter . | . . . . . Retrieved Components . | . . . . . Parts Scanalyzed . | . . . . . Part Schematics Acquired . | . . . . . Parts Damaged . | . . . . . Bothacking | -11 -10 -10 -10 -9 ------------ Run | Yrd Mat Min Exi Min Used RIF Installer . | . . . . . Robots Hacked . | . . . . . Non-combat . | . . . . . Combat . | . . . . . Robot Hacks Applied . | . . . . . Relay Couplers Released . | . . . . . Fabnet Peak Effective % . | . . . . . Robots Rewired . | . . . . . Allies Hacked . | . . . . . Hacks Repelled . | . . . . . Allies | -11 -10 -10 -10 -9 -------- Run | Yrd Mat Min Exi Min Total Allies . | . . . . . Largest Group . | . . . . . Highest-Rated Group . | . . . . . Highest-Rated Ally . | . . . . . Total Orders . | . . . . . Ally Attacks . | . . . . . Total Damage . | . . . . . Kills . | . . . . . Allies Corrupted . | . . . . . Allies Melted . | . . . . . Intel | -11 -10 -10 -10 -9 ------- Run | Yrd Mat Min Exi Min Active Infowar (turns) 4299 | 108 1467 794 1233 697 Sensors 207 | . . 1 . 206 Terrain 258 | 26 232 . . . Seismic 4092 | 108 1467 793 1233 491 Robot Analysis Total . | . . . . . Derelict Logs Recovered 1 | . . 1 . . Drone Launches . | . . . . . Drone Recoveries . | . . . . . Exploration | -11 -10 -10 -10 -9 ------------- Run | Yrd Mat Min Exi Min Turns Passed 4479 | 188 1467 794 1252 778 Spaces Moved 2038 | 85 767 443 450 293 Core 4 | 4 . . . . Treads 1740 | 81 767 443 449 . Legs 294 | . . . 1 293 Wheels . | . . . . . Hover . | . . . . . Flight . | . . . . . Fastest Speed 50 | 50 160 160 160 190 Average Speed 184 | 154 160 160 252 190 Slowest Speed 320 | 160 160 160 320 190 Overloaded Moves . | . . . . . Propulsion Burnouts . | . . . . . Robots Hopped . | . . . . . Potential Cave-ins . | . . . . . Cave-ins Triggered . | . . . . . Exploration Rate (%) 59 | 5 96 96 61 41 Regions Visited 4 Branch Regions 3 Pre-discovered Areas 1 | . . . 1 . Known Exits Taken . | . . . . . Unknown Exits Taken 4 | 1 1 1 1 . Scrap Searched 3 | . . 2 . 1 Spaces Dug 8 | . . . . 8 Terrain Destroyed 53 | . . 14 17 22 Melee 8 | . . . . 8 Projectile . | . . . . . AOE 45 | . . 14 17 14 Terrain Rammed . | . . . . . Walls Destroyed . | . . . . . Machines Disabled . | . . . . . Actions | -11 -10 -10 -10 -9 --------- Run | Yrd Mat Min Exi Min Total 2548 | 111 929 505 531 472 Wait 283 | . 81 39 31 132 Move 2034 | 84 766 442 449 293 Hop . | . . . . . Pick Up 41 | 4 20 2 11 4 Fast Attach 10 | 6 2 . . 2 Attach 9 | 1 1 . 3 4 Detach 1 | . . . . 1 Swap 26 | 1 6 4 6 9 Drop 16 | . 7 2 7 . Fire 109 | 15 43 12 24 15 Melee 12 | . . . . 12 Ram . | . . . . . Kick . | . . . . . Crush 7 | . 3 4 . . Escape Stasis . | . . . . . Rewire . | . . . . . Trap . | . . . . . Miscellaneous . | . . . . . Route ------- -11/Scrapyard -10/Materials (discovered 4 exits: [*Mat x3] / [*Min]) -10/Mines (discovered 4 exits: [*Mat x2] / *Exi / [*Sub]) -10/Exiles -9/Mines History --------- Turn | Location | Event 10 | -11/Scrapyard | Discovered new exit (range 15) 189 | -11/Scrapyard | Entered Materials 302 | -10/Materials | Build established: Mutant 429 | -10/Materials | Discovered new exit (range 5) 732 | -10/Materials | Discovered new exit (range 8) 1069 | -10/Materials | Discovered new exit (range 10) 1402 | -10/Materials | Discovered new exit (range 13) 1470 | -10/Materials | Repaired Lgt. Treads 1498 | -10/Materials | Repaired Lgt. Treads 1656 | -10/Materials | Entered Mines 1689 | -10/Mines | Learned 4 Materials zone layouts 1880 | -10/Mines | Found a damaged Exp. Sensor Array with a note attached 1883 | -10/Mines | Found Prototype Device 1883 | -10/Mines | Identified Exp. Sensor Array 2070 | -10/Mines | Deemed a non-threat by the Exiles lab entrance 2071 | -10/Mines | Discovered new exit (range 5) 2134 | -10/Mines | Discovered new exit (range 13) 2181 | -10/Mines | Discovered new exit (range 12) 2257 | -10/Mines | Discovered new exit (range 5) 2316 | -10/Mines | Excavation squad dispatched 2316 | -10/Mines | A large section of the Mines collapsed 2450 | -10/Mines | Entered Exiles 2489 | -10/Exiles | Met 8R-AWN 2518 | -10/Exiles | Met EX-HEX 2559 | -10/Exiles | Met EX-BIN 2578 | -10/Exiles | Aligned with FarCom system 2580 | -10/Exiles | Given EX-Vault access code 2618 | -10/Exiles | Opened EX-Vault 2631 | -10/Exiles | Found Field Lobotomy Kit 2703 | -10/Exiles | Warned to stay clear of 0b10 Research branches 2799 | -10/Exiles | Met EX-DEC 2811 | -10/Exiles | Learned location of Zion (-7) 3422 | -10/Exiles | Discovered new exit (range 12) 3545 | -10/Exiles | Attacked by the Exiles 3673 | -10/Exiles | Core integrity fell below 50% 3697 | -10/Exiles | Core integrity fell below 20% 3702 | -10/Exiles | Left Exiles lab with Field Lobotomy Kit 3702 | -10/Exiles | Entered Mines 3709 | -9/Mines | Met a Derelict bent on vengeance 3732 | -9/Mines | Lost 6 parts (1p2n1u2w) 3876 | -9/Mines | A weapon hastily lodged in a ceiling crevice suddenly fell to the ground 4463 | -9/Mines | Received a Rocket Launcher from a helpful Derelict 4480 | -9/Mines | Destroyed by G-47 Trooper with Particle Gun Last Messages --------------- 04428_ Found Imp. Targeting Computer. 04428_ Found Visual Processing Unit. 04428_ Found 34 Matter. 04429_ Acquired 34 matter. 04432_ Acquired Structural Scanner. 04438_ Acquired Lgt. EM Pulse Cannon. 04452_ A derelict emerges from the shadows. 04453_ UL-W4X(g): "Some of my friends down here think you need a mining laser when you travel the depths." 04454_ UL-W4X(g): "You know what I say? NO!" 04455_ UL-W4X(g): "Everyone knows a good old rocket launcher goes a long way." 04461_ UL-W4X(g): "Need to get rid of a swarm? Done. Need a big hole in the wall? Done." 04462_ UL-W4X(g): "Need a small hole in the wall? Leave that to the mining laser wimps, I say!" 04463_ UL-W4X(g): "Would you like a rocket launcher? I know I would if I were you, so I'm going to lend you mine." 04463_ UL-W4X(g) slips back into the shadows. 04466_ Acquired Rocket Launcher. Map ----- +----------------------------------------------------+ | | | | | | | | | | | | | | | | | | | | | | | | | | | | | | | | | | | ?????????????????????????????????????????????????? | | ????????????????????????????????########?????????? | | ????????????????????????????????# #?????????? | | ????????????????????????????????# #?????????? | | ????????????????????????????????# ## #?????????? | | ????????????????????????????????# ## #?????????? | | ????????????????????????????????# ## #?????????? | | ???????????????## ????#####?????# ## #?????????? | | ??????????????## ### @##????# ## #?????????? | | ??????????????# ##???# ## #?????????? | | ?????????? #???#!!## ##?##?????? | | ?????????? ##### ## ###"###### | | ??????????##### ## ##" | | ??????????????## ## ## ### | | ???????????????# #?# ##### ####### ### #### | | ???????????????# #??# ????# ###### ##?# #??? | | ???????????????# ???# ????# ##?# #??? | | ???????????????# ???? [%????######## ### #??? | | ??????????????? ????? [ ???????????# ## #??? | | ?????????????? ????? g ???????????## ## #??? | | ????????????????????# ????????????### ### #??? | | ????????????????????# ???????????????###"## #??? | | ????????????????????? ?????????????????##"#= ##?? | | ?????????????????????? ??????????????????## !! ##? | | ??????????????????????????????????????????#|* #? | | ??????????????????????????????????????????# # | | ??????????????????????????????????????????## | | ???????????????????????????????????????????## | | ????????????????????????????????????????????## | | ?????????????????????????????????????????????## | | ????????????????????????????????????????###???# | | ???????????????????????????????????????## #???# | | ??????????????????????????????????????## #???# | +----------------------------------------------------+ Best States ------------- Heat Dissipation 25 Energy Generation 12 Energy Capacity 265 Matter Stores 300 Matter Capacity 300 Sight Range 16 Robot Scan Range 20 Terrain Scan Range 16 Terrain Scan Density 10 Evasion (%) 40 Recoil Reduction 2 Item Schematics ----------------- None Robot Schematics ------------------ None Fabricated ------------ Nothing Repaired ---------- Lgt. Treads | 27% | -10/Materials Lgt. Treads | 36% | -10/Materials Studied --------- None Alien Tech Used ----------------- None Achievements -------------- None Challenges ------------ None Game ------ Seed EncryptedScrapDisintegrator Manual? 0 Play Time 00:16:57 Cumulative 1433.6 hours Start 2026.09.05 @ 12:18:55 End 2026.09.05 @ 12:33:14 Sessions 1 Manual Loads 0 Difficulty Rogue Special Mode None Game No. 444 Rogue 442 Adventurer 2 Explorer 0 Win Type - Total 129 Types 34/32/30/2/1/1/22/3/1/3 Lore% 97 Gallery% 92 Achievement% 92 Wizard Run 0 Options --------- Layout 0 ASCII 0 Keyboard 1 Movement Numpad Keybinds 0 Fullscreen 1 Font 24/Smallcaps Map View 76x50 Zoom Use 0% Tactical HUD 1 Map Filters NONE Filters NONE Steam 1 RUN: 904b6330-44b1-40e7-8ed5-93db9c449918